bitfinex-derivatives/quotes_ETHF0:USTF0_20251009
["timestamp","ask_amount","ask_price","bid_price","bid_amount"]
[1759994728883,3.5282952,4428.4,4428.3,0.9882]
[1759994729185,4.0718952,4428.4,4428.3,0.9882]
[1759994729882,3.6655152,4428.4,4428.3,1.39459]
[1759994730087,4.0718952,4428.4,4428.3,1.39459]
[1759994730582,3.6655152,4428.4,4428.3,1.39459]
[1759994730789,4.0718952,4428.4,4428.3,0.9882]
[1759994730981,3.3326152,4428.4,4428.3,0.9882]
[1759994731184,4.0718952,4428.4,4428.3,0.7752]
[1759994731384,4.0718952,4428.4,4428.3,0.226]
[1759994731979,1.1682,4428.2,4428.1,0.3407]
[1759994732183,1.1682,4428.2,4428.1,0.5667]
[1759994733689,1.1682,4428.2,4428.1,0.7752]
[1759994734689,1.1682,4428.2,4428.1,0.9882]
[1759994735585,1.1682,4428.2,4427.5,0.1287]
[1759994735586,0.40645,4427.7,4427.5,0.1287]
[1759994735894,1.16825,4427.7,4427.6,0.9882]
[1759994736494,1.16825,4427.7,4427.6,1.39465]
[1759994736995,0.83535,4427.7,4427.6,1.39465]
[1759994739890,0.83535,4427.7,4427.6,0.9882]
[1759994740088,1.16715,4427.7,4427.6,0.9882]
[1759994740290,1.16715,4427.7,4427.6,0.3407]
[1759994740493,1.18989,4427.2,4427.1,0.794]
[1759994740696,1.18989,4427.2,4427.1,1.02]
[1759994740994,0.7834,4427.2,4427.1,1.4265]
[1759994741192,0.4516,4427.2,4427.1,1.4265]
[1759994741994,0.85809,4427.2,4427.1,1.4265]
[1759994742186,1.18989,4427.2,4427.1,1.4265]
[1759994742693,1.18989,4427.2,4427.1,1.2005]
[1759994742891,0.8581,4427.1,4427.0,0.00253732]
[1759994743096,0.8581,4427.1,4427.0,0.79843732]
[1759994743097,1.1899,4427.1,4427.0,0.79843732]
[1759994743288,1.1899,4427.1,4427.0,1.02253732]
[1759994743989,1.1899,4427.1,4427.0,1.42904732]
[1759994744295,1.1899,4427.1,4427.0,1.55754732]
[1759994745092,1.01613,4427.7,4427.1,0.4065]
[1759994745093,0.40649,4427.3,4427.1,0.4065]
[1759994745288,0.40646,4427.6,4427.5,0.6804]
[1759994745488,3.57766586,4427.6,4427.5,1.1285]
[1759994745694,0.62076,4427.6,4427.5,1.1285]
[1759994745997,0.40645,4427.6,4427.5,0.7939]
[1759994746294,0.40645,4427.6,4427.5,1.1285]
[1759994749894,0.62075,4427.6,4427.5,1.1285]
[1759994750300,0.62074,4427.8,4427.7,0.4394]
[1759994750499,0.62074,4427.8,4427.7,1.18045]
[1759994750795,3.59321357,4427.8,4427.7,0.774]
[1759994751004,0.40642,4428.0,4427.9,1.18043]
[1759994751193,0.40642,4428.0,4427.9,1.40643]
[1759994751389,3.62302777,4428.0,4427.9,1.40643]
[1759994751592,0.40639,4428.3,4428.2,0.5519]
[1759994751790,0.40639,4428.3,4428.2,0.774]
[1759994751996,0.62068,4428.4,4428.3,0.774]
[1759994752198,0.62068,4428.4,4428.3,1.0]
[1759994752399,3.62298777,4428.4,4428.3,1.0]
[1759994752902,3.40868777,4428.4,4428.3,1.40639]
[1759994753101,4.17868777,4428.4,4428.3,1.0]
[1759994753400,3.40868777,4428.4,4428.3,1.0]
[1759994753701,3.21660777,4428.4,4428.3,1.40639]
[1759994753905,0.00203241,4428.7,4428.6,1.18036]
[1759994758207,0.21633241,4428.7,4428.6,0.774]
[1759994758401,0.21633241,4428.7,4428.6,1.0]
[1759994758608,0.21633241,4428.7,4428.6,1.40636]
[1759994759304,0.77203241,4428.7,4428.6,0.774]
[1759994759509,0.77203241,4428.7,4428.6,1.0]
[1759994759708,1.17838241,4428.7,4428.6,1.0]
[1759994760807,1.17838241,4428.7,4428.6,0.774]
[1759994761008,1.17838241,4428.7,4428.6,1.0]
[1759994761721,1.1764,4428.2,4428.1,0.774]
[1759994761904,1.1764,4428.2,4428.1,1.0]
[1759994763599,1.1764,4428.2,4428.1,1.40641]
[1759994764007,0.8491,4428.2,4428.1,1.40641]
[1759994764213,0.4427,4428.2,4428.1,1.40641]
[1759994764409,0.94799,4428.4,4428.3,0.4394]
[1759994764613,0.2143,4428.4,4428.3,1.18039]
[1759994764813,0.62068,4428.4,4428.3,1.40639]
[1759994765607,0.62068,4428.4,4428.3,1.0]
[1759994766113,0.94798,4428.4,4428.3,1.0]
[1759994766314,1.17638,4428.4,4428.3,1.0]
[1759994767316,0.40641,4428.1,4428.0,0.1285]
[1759994767519,1.17645,4427.7,4427.6,0.4394]
[1759994767719,1.17645,4427.7,4427.6,0.6654]
[1759994768014,1.17645,4427.7,4427.6,1.0]
[1759994768918,1.17645,4427.7,4427.6,0.774]
[1759994769215,0.62075,4427.7,4427.6,1.0]
[1759994769818,0.2143,4427.7,4427.6,1.40645]
[1759994770317,0.93842,4428.0,4427.9,0.7703]
[1759994770616,1.16232,4428.0,4427.9,0.9963]
[1759994771813,1.16232,4428.0,4427.9,1.40273]
[1759994772724,0.7559,4428.0,4427.9,1.40273]
[1759994773218,0.2088,4428.0,4427.9,1.40273]
[1759994773524,0.61521,4428.2,4428.1,0.7703]
[1759994773918,3.08215205,4428.2,4428.1,1.17671]
[1759994774220,1.16226,4428.6,4428.5,0.8959]
[1759994774520,4.12669453,4428.6,4428.5,1.1219]
[1759994776118,3.72033453,4428.6,4428.5,1.52827]
[1759994776315,4.12669453,4428.6,4428.5,1.1219]
[1759994776919,1.16226,4428.6,4428.5,1.1219]
[1759994777222,1.1623,4428.2,4428.1,0.4279]
[1759994777423,1.1623,4428.2,4428.1,0.6539]
[1759994777616,1.1623,4428.2,4428.1,0.9963]
[1759994778316,0.7559,4428.2,4428.1,1.40271]
[1759994778714,1.1623,4428.2,4428.1,0.3424]
[1759994779021,1.16232,4428.0,4427.9,0.5501]
[1759994779215,1.16232,4428.0,4427.9,0.7761]
[1759994779412,0.40647,4427.5,4426.5,3.97824614]
[1759994779618,0.7559,4427.5,4427.4,0.83437]
[1759994780122,0.7559,4427.5,4427.4,1.17677]
[1759994781221,1.16236,4427.5,4427.4,0.9963]
[1759994781724,0.7559,4427.5,4427.4,0.9963]
[1759994782412,0.7559,4427.5,4427.4,1.40277]
[1759994784325,0.7559,4427.5,4427.4,1.17677]
[1759994784723,0.7559,4427.5,4427.4,1.40277]
[1759994786224,0.40645,4427.7,4427.5,0.40646]
[1759994786428,0.61525,4427.7,4427.6,0.7703]
[1759994787115,1.16235,4427.7,4427.6,0.7703]
[1759994788327,1.16235,4427.7,4427.6,0.7761]
[1759994788530,1.16235,4427.7,4427.6,0.5684]
[1759994788725,1.16235,4427.7,4427.6,0.3424]
[1759994788929,1.16235,4427.7,4427.6,0.5684]
[1759994789627,1.16235,4427.7,4427.6,0.3424]
[1759994789832,0.7559,4427.3,4427.2,0.40649]
[1759994790130,0.7559,4427.3,4427.2,1.18259]
[1759994790330,0.7559,4427.3,4427.2,1.40279]
[1759994791626,1.16238,4427.3,4427.2,0.9963]
[1759994792132,1.16238,4427.3,4427.2,0.7703]
[1759994792430,0.7559,4427.3,4427.2,1.40279]
[1759994793530,0.2088,4427.3,4427.2,1.40279]
[1759994793731,1.14215,4428.5,4427.9,0.7703]
[1759994793732,0.61523,4428.0,4427.9,0.7703]
[1759994794034,3.87500501,4428.0,4427.9,0.9963]
[1759994794735,4.09890501,4428.0,4427.9,0.9963]
[1759994797032,4.22890501,4428.0,4427.9,0.226]
[1759994797641,0.5471,4427.4,4427.3,0.95658]
[1759994797836,1.16237,4427.4,4427.3,1.40278]
[1759994798633,1.16237,4427.4,4427.3,0.9963]
[1759994800035,1.16237,4427.4,4427.3,1.40278]
[1759994800338,0.7559,4427.4,4427.3,1.40278]
[1759994801843,1.16237,4427.4,4427.3,0.7703]
[1759994802139,1.16237,4427.4,4427.3,0.9963]
[1759994802743,1.16237,4427.4,4427.3,0.7761]
[1759994803739,1.16237,4427.4,4427.3,0.5684]
[1759994803936,1.16237,4427.4,4427.3,0.226]
[1759994804442,1.16237,4427.4,4427.3,0.5688]
[1759994804638,1.16237,4427.4,4427.3,0.7932]
[1759994805042,1.16237,4427.4,4427.3,0.5672]
[1759994805242,1.16237,4427.4,4427.3,0.7932]
[1759994806746,1.16237,4427.4,4427.3,1.0218]
[1759994806950,0.40645,4427.6,4427.5,0.9331]
[1759994807243,3.57050571,4427.6,4427.5,0.9331]
[1759994807443,4.11510571,4427.6,4427.5,0.9331]
[1759994808045,4.11510571,4427.6,4427.5,0.7958]
[1759994808642,1.16117,4427.4,4427.3,0.5688]
[1759994809144,1.16117,4427.4,4427.0,0.75184732]
[1759994809145,0.2101,4427.1,4427.0,0.75184732]
[1759994809347,0.7547,4427.1,4427.0,1.02433732]
[1759994809646,0.7547,4427.1,4427.0,1.56814732]
[1759994810746,0.2101,4427.1,4427.0,1.56814732]
[1759994811339,0.7547,4427.1,4427.0,1.56814732]
[1759994811540,0.7547,4427.1,4427.0,0.93563732]
[1759994811741,0.7547,4427.1,4427.0,1.16163732]
[1759994811945,0.7547,4427.1,4427.0,1.56814732]
[1759994812147,0.7547,4427.1,4427.0,1.34214732]
[1759994812343,0.7547,4427.1,4427.0,1.56814732]
[1759994816741,1.1612,4427.1,4427.0,0.56973732]
[1759994816948,4.14146304,4427.1,4427.0,0.22853732]
[1759994819244,4.14146304,4427.1,4427.0,0.57133732]
[1759994820753,4.14146304,4427.1,4427.0,0.56973732]
[1759994821052,4.14146304,4427.1,4427.0,0.57133732]
[1759994821455,4.14146304,4427.1,4427.0,0.22853732]
[1759994823454,4.14146304,4427.1,4427.0,0.00253732]
[1759994823752,0.3228,4425.7,4425.6,35.239]
[1759994823956,0.8857,4425.0,4424.9,2.02549255]
[1759994824155,0.5629,4424.5,4424.4,0.226]
[1759994824459,3.83701273,4424.5,4424.4,0.226]
[1759994824655,9.80878063,4424.5,4423.5,0.4801]
[1759994824850,0.7547,4423.4,4423.3,0.5672]
[1759994825450,3.65540877,4423.4,4423.3,0.226]
[1759994825750,8.65540877,4423.4,4423.3,0.226]
[1759994826061,8.65540877,4423.4,4423.3,0.22817878]
[1759994826249,8.65540877,4423.4,4423.3,0.00217878]
[1759994826250,9.62515355,4423.4,4423.3,0.00217878]
[1759994826451,10.03199355,4423.4,4423.3,0.00217878]
[1759994827354,3.65540877,4423.4,4423.3,0.22657878]
[1759994828359,3.65540877,4423.4,4423.3,0.00217878]
[1759994828854,4.62515355,4423.4,4423.3,0.00217878]
[1759994834263,3.65540877,4423.4,4423.3,0.00217878]
[1759994838061,3.65540877,4423.4,4423.3,0.56117878]
[1759994841358,3.65540877,4423.4,4423.3,0.00217878]
[1759994842560,3.65540877,4423.4,4423.3,0.22457878]
[1759994842858,3.65540877,4423.4,4423.3,0.56117878]
[1759994843057,3.65540877,4423.4,4423.3,0.78087878]
[1759994844166,3.65540877,4423.4,4423.3,1.18772878]
[1759994845959,3.65540877,4423.4,4423.3,0.56117878]
[1759994846159,3.65540877,4423.4,4423.3,0.33877878]
[1759994846359,3.65540877,4423.4,4423.3,0.56117878]
[1759994846866,3.65540877,4423.4,4423.3,0.96802878]
[1759994847066,3.65540877,4423.4,4423.3,1.18772878]
[1759994848361,1.01694,4424.2,4423.3,1.18772878]
[1759994848362,1.01683,4424.7,4423.4,1.01711]
[1759994848570,0.7632,4424.4,4424.3,0.559]
[1759994848765,4.1193561,4424.4,4424.3,0.559]
[1759994849167,4.89907097,4424.4,4424.3,0.559]
[1759994849663,4.89907097,4424.4,4424.3,0.2224]
[1759994849861,1.16996,4424.3,4424.2,0.226]
[1759994850167,4.16297168,4424.3,4424.2,0.226]
[1759994852356,4.73193157,4424.3,4424.2,0.226]
[1759994854070,0.7632,4423.7,4423.6,0.74341]
[1759994854365,1.33395727,4423.7,4423.6,0.63281]
[1759994854567,1.33395727,4423.7,4423.6,1.19181]
[1759994855068,1.33395727,4423.7,4423.6,0.785]
[1759994855268,1.74076727,4423.7,4423.6,0.226]
[1759994855674,4.66187828,4423.7,4423.6,0.226]
[1759994857572,4.66187828,4423.7,4423.6,0.785]
[1759994858367,4.66187828,4423.7,4423.6,0.226]
[1759994859675,4.25506828,4423.7,4423.6,1.17892]
[1759994861275,3.68431101,4423.7,4423.6,1.17892]
[1759994863875,0.4282,4423.4,4423.3,0.00217878]
[1759994864180,4.86264791,4423.4,4423.3,0.00217878]
[1759994864371,5.43333068,4423.4,4423.3,0.18117878]
[1759994865172,5.43333068,4423.4,4423.3,0.00217878]
[1759994867973,5.43333068,4423.4,4422.0,0.3438]
[1759994867974,0.209,4422.1,4422.0,0.3438]
[1759994868279,0.209,4422.1,4421.1,1.01762]
[1759994868280,0.7486,4421.7,4421.6,0.96241]
[1759994868478,0.7486,4421.7,4421.6,0.5554]
[1759994868681,0.7486,4421.7,4421.6,0.7814]
[1759994868980,0.7486,4421.7,4421.6,0.78417322]
[1759994869278,0.7486,4421.7,4421.6,0.55817322]
[1759994869671,0.7486,4421.7,4421.6,0.78417322]
[1759994869875,0.7486,4421.7,4421.6,0.55817322]
[1759994870081,0.7486,4421.7,4421.6,0.22877322]
[1759994870082,3.68931826,4421.7,4421.6,0.22877322]
[1759994870472,3.68931826,4421.7,4421.6,0.99427322]
[1759994871177,3.68931826,4421.7,4421.6,0.76827322]
[1759994871383,3.68931826,4421.7,4421.6,0.99427322]
[1759994874476,3.68931826,4421.7,4421.6,0.00277322]
[1759994874679,3.68931826,4421.7,4421.6,0.82127322]
[1759994876177,3.36891826,4421.7,4421.6,0.82127322]
[1759994876480,3.36891826,4421.7,4421.6,1.22828322]
[1759994876872,3.68931826,4421.7,4421.6,1.22828322]
[1759994877379,3.68931826,4421.7,4421.6,0.82127322]
[1759994877683,3.68931826,4421.7,4421.6,1.22828322]
[1759994879482,4.09631826,4421.7,4421.6,0.82127322]
[1759994879872,3.68931826,4421.7,4421.6,0.82127322]
[1759994880080,3.68931826,4421.7,4421.6,1.22828322]
[1759994880281,4.09631826,4421.7,4421.6,0.55817322]
[1759994880481,4.09631826,4421.7,4421.6,0.78417322]
[1759994880880,3.68931826,4421.7,4421.6,1.19118322]
[1759994881082,3.68931826,4421.7,4421.6,0.78417322]
[1759994881481,3.68931826,4421.7,4421.6,1.19118322]
[1759994883682,3.68931826,4421.7,4421.6,0.78417322]
[1759994884181,4.09631826,4421.7,4421.6,0.78417322]
[1759994884886,3.68931826,4421.7,4421.6,1.19118322]
[1759994885779,3.68931826,4421.7,4421.6,0.96518322]
[1759994885987,4.09631826,4421.7,4421.6,0.78417322]
[1759994886488,3.68931826,4421.7,4421.6,1.19118322]
[1759994886890,3.68931826,4421.7,4421.6,0.78417322]
[1759994887083,4.09631826,4421.7,4421.6,0.78417322]
[1759994887988,3.68931826,4421.7,4421.6,1.19118322]
[1759994891188,4.09631826,4421.7,4421.6,0.78417322]
[1759994891587,4.09631826,4421.7,4421.6,0.55817322]
[1759994891788,4.09631826,4421.7,4421.6,0.78417322]
[1759994892388,4.09631826,4421.7,4421.6,0.00277322]
[1759994892595,4.09631826,4421.7,4421.6,0.22877322]
[1759994894200,4.09631826,4421.7,4420.8,35.69008]
[1759994894201,0.2287,4420.2,4420.1,2.02549255]
[1759994894394,1.00841487,4420.5,4420.4,0.40712]
[1759994894594,1.23231487,4420.8,4420.7,0.5664]
[1759994894794,1.23231487,4420.8,4420.7,0.7924]
[1759994894998,4.20667981,4420.8,4420.7,0.7924]
[1759994895203,4.48199978,4420.8,4420.7,0.79528959]
[1759994895893,3.70228491,4420.8,4420.7,0.79528959]
[1759994896095,4.20859978,4420.8,4420.7,1.01008959]
[1759994896295,4.48199978,4420.8,4420.7,0.57178959]
[1759994896497,4.48199978,4420.8,4420.7,0.22888959]
[1759994897003,4.48199978,4420.8,4420.7,0.57178959]
[1759994897199,3.42888491,4420.8,4420.7,1.01008959]
[1759994897405,0.2287,4421.2,4421.1,1.18825]
[1759994898302,0.23163168,4421.2,4421.1,0.7812]
[1759994900304,0.23163168,4421.2,4421.1,1.0072]
[1759994900807,0.00293168,4421.2,4421.1,1.0072]
[1759994902813,0.00293168,4421.2,4421.1,1.41425]
[1759994903805,0.72893168,4421.2,4421.1,0.226]
[1759994904000,0.72893168,4421.2,4420.7,0.00288959]
[1759994904001,0.726,4420.9,4420.8,0.5664]
[1759994904208,1.50571487,4420.9,4420.8,0.7924]
[1759994905009,1.50571487,4420.9,4420.8,1.19948]
[1759994906101,1.23231487,4420.9,4420.8,1.41428]
[1759994906304,1.91260487,4422.4,4422.3,0.5664]
[1759994906603,4.87081543,4422.4,4422.3,0.226]
[1759994907200,4.87267126,4422.4,4422.3,0.226]
[1759994908902,3.73978126,4422.4,4422.3,0.7924]
[1759994909107,3.73978126,4422.4,4422.3,1.1993]
[1759994909305,3.73978126,4422.4,4422.3,1.4141]
[1759994909506,4.14667126,4422.4,4422.3,1.0072]
[1759994909707,3.73978126,4422.4,4422.3,1.0072]
[1759994909903,3.36695639,4422.4,4422.3,1.0072]
[1759994910204,2.96006639,4422.4,4422.3,1.0072]
[1759994910415,0.00185583,4422.4,4422.3,1.0072]
[1759994911707,1.01694,4423.7,4423.5,0.1312]
[1759994911911,1.01694,4423.7,4423.6,0.7812]
[1759994911912,0.40677,4423.7,4423.6,0.7812]
[1759994912109,3.37163568,4423.7,4423.6,0.7812]
[1759994912305,0.97215875,4424.3,4423.6,0.84508]
[1759994912508,0.40672,4424.3,4424.2,0.5664]
[1759994912712,0.40836135,4424.3,4424.2,0.56871188]
[1759994912910,3.28823742,4424.3,4424.2,0.56871188]
[1759994913110,4.26039617,4424.3,4424.2,0.56871188]
[1759994913311,4.26039617,4424.3,4424.2,0.34521188]
[1759994917213,4.26039617,4424.3,4424.2,0.00231188]
[1759994917514,4.26039617,4424.3,4424.2,0.34521188]
[1759994917917,4.26039617,4424.3,4424.2,0.56871188]
[1759994918213,4.26039617,4424.3,4424.2,0.34521188]
[1759994921613,4.26039617,4424.3,4424.2,0.56871188]
[1759994921816,3.28823742,4424.3,4424.2,0.79631188]
[1759994922213,3.28823742,4424.3,4424.2,0.57121188]
[1759994924513,2.88151742,4424.3,4424.2,1.00741188]
[1759994926119,2.88151742,4424.3,4424.2,1.41414188]
[1759994926820,2.88151742,4424.3,4424.2,1.00741188]
[1759994927020,0.00164135,4424.3,4424.2,1.00741188]
[1759994929920,0.40665,4425.0,4424.4,0.4067]
[1759994930120,0.97215875,4425.0,4424.9,0.5483]
[1759994930420,1.37880875,4425.0,4424.9,0.7743]
[1759994930620,4.26498394,4425.0,4424.9,0.5453]
[1759994931122,4.26739214,4425.0,4424.9,0.5453]
[1759994936425,4.26739214,4425.0,4424.9,0.3193]
[1759994936821,0.40667,4424.8,4424.7,0.226]
[1759994937020,0.40667,4424.8,4424.7,0.5453]
[1759994937222,3.29955757,4424.8,4424.7,0.5453]
[1759994938227,3.29955757,4424.8,4424.7,0.3193]
[1759994942126,4.27171632,4424.8,4424.7,0.3193]
[1759994942339,4.84354628,4424.8,4424.7,0.3193]
[1759994942529,0.40669,4424.6,4424.5,0.6796]
[1759994942831,3.32299496,4424.6,4424.5,0.6796]
[1759994945031,2.91630496,4424.6,4424.5,0.6796]
[1759994945429,3.34975072,4424.7,4424.6,0.3193]
[1759994945629,0.40668,4424.7,4424.6,0.3193]
[1759994946128,2.94307072,4424.7,4424.6,0.5483]
[1759994946434,2.94307072,4424.7,4424.6,1.17779]
[1759994946932,2.93553574,4424.8,4424.7,0.7711]
[1759994947228,1.38121695,4425.0,4424.8,0.3193]
[1759994947533,3.53456165,4424.9,4424.8,0.5483]
[1759994948335,3.53456165,4424.9,4424.8,1.17777]
[1759994949122,3.53456165,4424.9,4424.5,0.1343]
[1759994949123,0.0024082,4425.0,4424.9,1.18496]
[1759994949320,0.57482542,4425.0,4424.9,1.18496]
[1759994950328,0.0024082,4425.0,4424.9,1.18496]
[1759994954230,0.0024082,4425.0,4424.9,6.18496]
[1759994954734,0.4065,4426.7,4426.6,0.3295]
[1759994954930,0.97914196,4426.7,4426.6,0.7779]
[1759994955236,3.88701309,4426.7,4426.6,0.7779]
[1759994955439,3.88701309,4426.7,4426.6,0.5555]
[1759994955638,3.88932002,4426.7,4426.6,0.5555]
[1759994956037,4.86147877,4426.7,4426.6,0.5555]
[1759994957532,4.86147877,4426.7,4426.6,0.3295]
[1759994957732,4.86147877,4426.7,4426.6,0.5555]
[1759994958441,4.45497877,4426.7,4426.6,0.7779]
[1759994958638,4.86147877,4426.7,4426.6,0.7779]
[1759994961135,4.86147877,4426.7,4426.6,0.5555]
[1759994962942,4.86147877,4426.7,4426.6,0.3295]
[1759994963144,4.28883681,4426.7,4426.6,0.5555]
[1759994964037,0.40651,4426.6,4426.5,0.4607]
[1759994964237,0.40651,4426.6,4426.5,0.6867]
[1759994964437,3.39605593,4426.6,4426.5,0.4607]
[1759994964631,3.39605593,4426.6,4426.5,0.6867]
[1759994965644,3.39605593,4426.6,4426.5,0.9091]
[1759994967744,3.39605593,4426.6,4426.5,0.6867]
[1759994968946,3.39605593,4426.6,4426.5,0.9091]
[1759994969849,4.17482725,4426.6,4426.5,0.9091]
[1759994972949,4.17482725,4426.6,4426.5,0.6831]
[1759994973150,4.17482725,4426.6,4426.5,0.9091]
[1759994973647,4.17482725,4426.6,4426.5,0.6831]
[1759994973854,4.17482725,4426.6,4426.5,1.1355]
[1759994974244,4.17482725,4426.6,4426.5,0.9095]
[1759994974444,4.17482725,4426.6,4426.5,1.1355]
[1759994975545,3.39605593,4426.6,4426.5,1.1355]
[1759994976448,4.17482725,4426.6,4426.5,0.6867]
[1759994976745,4.17482725,4426.6,4426.5,1.1355]
[1759994976946,4.17482725,4426.6,4426.5,0.9091]
[1759994977547,4.95359857,4426.6,4426.5,0.4607]
[1759994977747,4.17482725,4426.6,4426.5,0.6867]
[1759994977948,4.95359857,4426.6,4426.5,0.1312]
[1759994978147,4.17482725,4426.6,4426.5,0.4607]
[1759994984453,4.7414789,4426.6,4426.5,0.4607]
[1759994992367,4.7414789,4426.6,4426.5,0.6823]
[1759994992573,4.17482725,4426.6,4426.5,0.6823]
[1759994992764,3.76831725,4426.6,4426.5,0.6823]
[1759994993272,4.17482725,4426.6,4426.5,0.6823]
[1759994993667,3.76831725,4426.6,4426.5,1.30571]
[1759994994070,3.76831725,4426.6,4426.5,1.53171]
[1759994998074,2.98954593,4426.6,4426.5,1.53171]
[1759995000677,0.00230693,4426.7,4426.6,1.16651]
[1759995002775,0.00230693,4426.7,4426.6,1.39251]
[1759995003980,0.00230693,4426.7,4426.6,1.17561]
[1759995005167,0.00230693,4426.7,4426.6,0.5431]
[1759995005477,2.88642436,4426.7,4426.6,0.5475]
[1759995005670,3.29292436,4426.7,4426.6,0.3215]
[1759995005872,3.29292436,4426.7,4426.6,0.5475]
[1759995006673,4.07169568,4426.7,4426.6,0.3215]
[1759995006877,3.8591117,4426.7,4426.6,0.226]
[1759995007276,3.8591117,4426.7,4426.6,0.5475]
[1759995008480,3.8591117,4426.7,4426.6,0.3215]
[1759995009379,0.40651,4426.6,4426.5,0.3572]
[1759995009677,4.09102256,4426.6,4426.5,0.4725]
[1759995009893,0.40653,4426.3,4426.2,0.3413]
[1759995010077,1.18530132,4426.3,4426.2,0.3413]
[1759995010276,4.08676146,4426.3,4426.2,0.3413]
[1759995012270,4.65277111,4426.3,4426.2,0.3413]
[1759995012477,1.01642,4426.0,4425.7,0.3413]
[1759995012676,1.01642,4426.0,4425.5,0.1312]
[1759995012677,0.4066,4425.6,4425.5,0.1312]
[1759995012875,0.40659,4425.7,4425.5,0.5689]
[1759995013079,3.40681068,4425.6,4425.5,0.5689]
[1759995013376,0.4066,4425.6,4425.5,0.6842]
[1759995013577,3.28150794,4425.6,4425.5,0.9102]
[1759995013777,2.87490794,4425.6,4425.5,1.52971]
[1759995014176,2.87490794,4425.7,4425.6,1.1725]
[1759995014380,3.27769143,4425.8,4425.6,1.1725]
[1759995014584,0.40658,4425.8,4425.7,0.7659]
[1759995014884,0.40656,4426.0,4425.8,0.553]
[1759995015082,1.18532132,4426.1,4426.0,0.4704]
[1759995015376,4.09499501,4426.1,4426.0,0.4704]
[1759995015778,4.09499501,4426.1,4426.0,0.6821]
[1759995017986,0.40664,4425.6,4425.5,0.1312]
[1759995018184,0.40664,4425.6,4425.5,0.4725]
[1759995018185,1.18541132,4425.6,4425.5,0.4725]
[1759995018384,4.17594549,4425.6,4425.5,0.4725]
[1759995018883,4.17594549,4425.6,4424.7,0.3413]
[1759995018884,1.01672,4425.1,4424.7,0.3413]
[1759995019090,1.18548132,4424.8,4424.7,0.3413]
[1759995019479,4.13265928,4424.8,4424.7,0.3413]
[1759995027394,0.40676,4424.3,4424.2,0.00231188]
[1759995027692,0.40676,4424.3,4423.5,0.4704]
[1759995027693,1.01692,4424.2,4423.5,0.4704]
[1759995027992,0.77877132,4423.9,4423.6,0.3413]
[1759995028591,0.40682,4423.6,4423.5,0.4704]
[1759995028792,0.40922933,4423.6,4423.5,0.47257943]
[1759995028994,4.12100571,4423.6,4423.5,0.47257943]
[1759995029689,3.34223439,4423.6,4423.5,0.47257943]
[1759995029895,2.93541439,4423.6,4423.5,1.09110943]
[1759995030192,3.71418571,4423.6,4423.5,1.09110943]
[1759995031293,3.71418571,4423.6,4423.5,0.68427943]
[1759995031490,4.12100571,4423.6,4423.5,0.68427943]
[1759995031892,3.34223439,4423.6,4423.5,0.68427943]
[1759995032091,3.34223439,4423.6,4423.5,1.09110943]
[1759995032593,2.93541439,4423.6,4423.5,1.09110943]
[1759995033091,3.34223439,4423.6,4423.5,1.09110943]
[1759995033890,3.34223439,4423.6,4423.5,0.68427943]
[1759995034697,3.34223439,4423.6,4423.5,1.09110943]
[1759995034882,2.93541439,4423.6,4423.5,1.09110943]
[1759995035084,2.93541439,4423.6,4423.5,1.30400943]
[1759995035594,3.34223439,4423.6,4423.5,1.30400943]
[1759995035895,2.93541439,4423.6,4423.5,1.30400943]
[1759995036494,3.34223439,4423.6,4423.5,1.30400943]
[1759995040391,2.93541439,4423.6,4423.5,1.30400943]
[1759995042592,2.93541439,4423.6,4423.5,1.53000943]
[1759995042899,3.34223439,4423.6,4423.5,1.53000943]
[1759995043096,3.34223439,4423.6,4423.5,1.12317943]
[1759995043286,3.34223439,4423.6,4423.5,0.89717943]
[1759995043494,3.34223439,4423.6,4423.5,0.13127943]
[1759995043694,4.31391973,4423.6,4423.5,0.44637943]
[1759995045197,2.93541439,4423.6,4423.5,0.88507943]
[1759995046596,1e-08,4423.6,4423.5,5.88507943]
[1759995049497,1e-08,4423.6,4423.5,6.29190943]
[1759995052003,1e-08,4423.6,4423.5,6.51790943]
[1759995052999,1e-08,4423.6,4423.5,0.88507943]
[1759995053199,1e-08,4423.6,4423.5,1.11107943]
[1759995054806,1e-08,4423.6,4423.5,0.88507943]
[1759995055003,1e-08,4423.6,4423.5,1.11107943]
[1759995058805,1e-08,4423.6,4423.5,1.51790943]
[1759995059808,0.40682001,4423.6,4423.5,1.11107943]
[1759995060607,0.40682001,4423.6,4423.5,1.51790943]
[1759995061611,0.40682001,4423.6,4423.5,1.11107943]
[1759995063411,0.40682001,4423.6,4423.5,1.51790943]
[1759995065710,0.40682001,4423.6,4423.5,1.29190943]
[1759995065909,0.40682001,4423.6,4423.5,1.51790943]
[1759995066113,1e-08,4423.6,4423.5,1.20280943]
[1759995069818,0.40682001,4423.6,4423.5,1.20280943]
[1759995070516,0.40682001,4423.6,4423.5,1.52160943]
[1759995073713,1.37850535,4423.6,4423.5,0.45007943]
[1759995073910,4.32461291,4423.6,4423.5,0.67607943]
[1759995075319,4.32461291,4423.6,4423.5,0.88337943]
[1759995080816,4.32461291,4423.6,4423.5,0.65737943]
[1759995081117,4.32461291,4423.6,4423.5,0.88337943]
[1759995089429,2.94610757,4423.6,4423.5,1.09147943]
[1759995089725,1e-08,4423.6,4423.5,1.17950943]
[1759995090432,0.40678,4424.1,4424.0,0.1333]
[1759995090625,0.40678,4424.1,4424.0,0.7747]
[1759995090926,0.40678,4424.1,4424.0,1.0935]
[1759995091532,0.40959349,4424.1,4424.0,1.0935]
[1759995094030,1.18913572,4424.1,4424.0,1.0935]
[1759995095034,0.40959349,4424.1,4424.0,1.0935]
[1759995095233,1.18913572,4424.1,4424.0,1.0935]
[1759995095532,1.18913572,4424.1,4424.0,0.8675]
[1759995096033,1.18913572,4424.1,4424.0,1.0935]
[1759995097133,1.18913572,4424.1,4424.0,1.50029]
[1759995097531,0.40959349,4424.1,4424.0,1.50029]
[1759995097727,1.18913572,4424.1,4424.0,1.50029]
[1759995097933,0.78235572,4424.1,4424.0,1.50029]
[1759995098436,1.18913572,4424.1,4424.0,1.50029]
[1759995101433,0.78235572,4424.1,4424.0,1.50029]